Cogmind - Beta 15 @@@ ROGUE MODE // 2025.05.26 @ 00:27:20 Player: Andru7428 Result: Destroyed self with Grenade Launcher Performance ------------- Evolutions (0) 0 Regions Visited (2) 400 Robots Destroyed (28) 140 Value Destroyed (734) 734 Prototype IDs (0) 0 Alien Tech Used (0) 0 Bonus (-2) -2 TOTAL SCORE: 1272 Bonus ------- Friendly Fire -2 Cogmind --------- Core Integrity 0/250 Matter 178/300 Energy 170/170 System Corruption 1% Temperature Cool (0) Movement Treading (160) Location -10/Subcaves Parts ------- > --- POWER (1) -------- Makeshift Power Source > --- PROPULSION (2) --- Light Treads Light Treads > --- UTILITY (2) ------ Large Storage Unit Makeshift Light Armor Plating > --- WEAPON (2) ------- Barrage Gun Grenade Launcher > --- INVENTORY (15) --- Spiked Treads Wheel Medium Matter Pod (100) Medium Matter Pod (100) Targeting Computer Makeshift Light Armor Plating Scrap Shield Medium Laser Small Laser Grenade Launcher Grenade Launcher Peak State ------------ > --- POWER ------------ Makeshift Power Source > --- PROPULSION ------- Light Treads Light Treads > --- UTILITY ---------- Large Storage Unit Makeshift Light Armor Plating > --- WEAPON ----------- Barrage Gun Grenade Launcher > --- INVENTORY -------- Spiked Treads Wheel Medium Matter Pod Medium Matter Pod Targeting Computer Scrap Shield Medium Laser Small Laser Grenade Launcher Grenade Launcher [Rating: 16] Favorites ----------- Power Light Ion Engine Engine Light Ion Engine Propulsion Light Treads Treads Light Treads Utility Large Storage Unit Device Seismic Detector Storage Large Storage Unit Protection Makeshift Light Armor Plating Weapon Grenade Launcher Energy Gun Medium Laser Ballistic Gun Light Assault Rifle Launcher Grenade Launcher Build | -11 -10 -10 ------- Run | Yrd Mat Sub Slots Evolved . | . . . Power . | . . . Propulsion . | . . . Utility . | . . . Weapon . | . . . Parts Attached 18 | 7 5 6 Power 3 | 1 1 1 Engine 3 | 1 1 1 Core . | . . . Reactor . | . . . Propulsion 6 | 2 2 2 Treads 6 | 2 2 2 Leg . | . . . Wheel . | . . . Hover . | . . . Flight . | . . . Utility 4 | 2 1 1 Device 1 | 1 . . Storage 2 | 1 1 . Processor . | . . . Hackware . | . . . Protection 1 | . . 1 Artifact . | . . . Weapon 5 | 2 1 2 Energy Gun 1 | 1 . . Energy Cannon . | . . . Ballistic Gun 2 | 1 . 1 Ballistic Cannon . | . . . Launcher 2 | . 1 1 Special Weapon . | . . . Impact Weapon . | . . . Slashing Weapon . | . . . Piercing Weapon . | . . . Special Melee Weapon . | . . . Unidentified Prototypes . | . . . Parts Lost 8 | . 1 7 Power 2 | . 1 1 Propulsion 3 | . . 3 Utility 1 | . . 1 Weapon 2 | . . 2 Highest Loss Streak 4 | . 1 4 To Critical Strikes . | . . . Average Backups 9 | 4 8 10 Power . | . . . Propulsion 3 | 2 4 2 Utility 2 | . 1 3 Weapon 3 | 1 1 4 Tool/Special . | . . . Unused Backups 15 | . 5 10 Power . | . . . Propulsion 7 | . 5 2 Utility 5 | . . 5 Weapon 3 | . . 3 Tool/Special . | . . . Average Slot Usage (%) 89 | . 99 81 Engine 10 | . 13 7 Treads 27 | . 28 27 Device 6 | . 14 1 Storage 14 | . 14 14 Protection 3 | . . 6 Energy Gun 5 | . 14 . Ballistic Gun 10 | . 14 8 Launcher 8 | . . 14 Peak Build Rating 16 | 7 8 16 Average Rating 8 | 3 7 10 On Entrance 5 | . 7 8 Naked Turns . | . . . Heaviest Build 34 | 12 28 34 Greatest Support 40 | 40 40 40 Greatest Overweight (x) . | . . . Average Overweight (x) . | . . . Largest Inventory Capacity 15 | 8 15 15 Average Capacity 13 | 6 11 15 Most Carried 13 | 8 12 13 Average Carried 9 | 5 8 11 Final Capacity 15 | 8 15 15 Final Carried 12 | 6 12 12 Class Distribution -------------------- 100% | Mutant Dominant Class ---------------- Mutant | -10/Materials Mutant | -10/Subcaves Resources | -11 -10 -10 ----------- Run | Yrd Mat Sub Matter Collected 874 | 202 232 440 Remotely . | . . . Salvage Created 787 | 41 538 208 Parts 53 | 7 26 20 Haulers Intercepted 2 | . 2 . Recyclers Shooed . | . . . Parts Field Recycled . | . . . Retrieved Matter . | . . . Parts Self-Destructed 11 | . . 11 Prevented . | . . . Kills | -11 -10 -10 ------- Run | Yrd Mat Sub Combat Hostiles Destroyed 19 | . 10 9 Guns 8 | . 8 . AOE 11 | . 2 9 Classes Destroyed 8 | 1 6 1 Worker 1 | . 1 . Tunneler 2 | 2 . . Hauler 2 | . 2 . Recycler 1 | . 1 . Watcher 3 | . 3 . Swarmer 3 | . 3 . Grunt 8 | . 7 1 Subdweller 8 | . . 8 Best Kill Streak 4 | 2 4 2 Combat Bots Only 3 | . 3 2 Max Kills in Single Turn 3 | 1 3 1 Gunslinging . | . . . Exploded 2 | . 2 1 Melee . | . . . Uniques/NPCs Destroyed . | . . . Combat | -11 -10 -10 -------- Run | Yrd Mat Sub Hostile Shots Fired 88 | . 61 27 Missed 24 | . 16 8 Hits 64 | . 45 19 Projectile 64 | . 45 19 Critical Strikes 2 | . 1 1 Damage Taken 1280 | . 517 763 Core 253 | . 112 141 Absorbed by Shields . | . . . Core Remaining (%) 100 | 100 . . Volleys Fired 120 | 5 55 60 Largest 2 | 2 2 1 Hottest 70 | 70 70 30 Shots Fired 177 | 10 107 60 Gun 145 | 10 106 29 Cannon . | . . . Launcher 32 | . 1 31 Special . | . . . Kinetic 87 | 5 53 29 Thermal 58 | 5 53 . Explosive 32 | . 1 31 Electromagnetic . | . . . Robot Hit Streak 13 | 2 12 13 Robot Miss Streak 4 | 3 4 1 Penetration Max . | . . . Secondary Targets . | . . . Shots Hit Robots 96 | 5 72 19 Core Hits 48 | 3 31 14 Critical Kills . | . . . Critical Parts Destroyed 1 | . 1 . Critical Strikes 6 | . 6 . Burn 5 | . 5 . Destroy 1 | . 1 . Melee Attacks . | . . . Impact . | . . . Slashing . | . . . Piercing . | . . . Sneak Attacks . | . . . Combat Hostiles . | . . . Follow-up Attacks . | . . . Damage Inflicted 2115 | 63 920 1132 Guns 830 | 63 767 . Cannons . | . . . Explosions 1277 | . 145 1132 Melee . | . . . Ramming 8 | . 8 . Kinetic 303 | 25 278 . Thermal 527 | 38 489 . Explosive 1277 | . 145 1132 Electromagnetic . | . . . Impact . | . . . Slashing . | . . . Piercing . | . . . Highest Corruption 1 | . 1 1 Average Corruption 1 | . 1 1 Corruption Purged . | . . . Corruption Blocked . | . . . Effects 20 | . 8 12 Matter Fused 6 | . 2 4 Heat Flow Errors 2 | . 2 . Energy Discharges 5 | . 2 3 Data Loss (minor) 2 | . . 2 Data Loss (major) 1 | . . 1 Misfires 1 | . . 1 Weapon Failures 3 | . 2 1 Overload Shots . | . . . Overflow Damage 45 | . 28 17 Projectiles . | . . . Explosions 45 | . 28 17 Melee . | . . . Knockbacks . | . . . Impact . | . . . Kinetic . | . . . Secondary . | . . . Self-Inflicted Damage 369 | . . 369 Shots 13 | . . 13 Rammed 1 | . 1 . Targets Rammed 2 | . 2 . Kicked . | . . . Crushed 1 | . 1 . Highest Temperature 259 | 70 218 259 Average Temperature 54 | 36 53 140 Received Heat Transfer 559 | . 189 370 Siege Activations . | . . . Martial Activations . | . . . Shielding Activations . | . . . Robots Disrupted . | . . . Combat Hostiles . | . . . Robots Corrupted . | . . . Combat Hostiles . | . . . Parts Fried . | . . . Impact Corruptions . | . . . Robots Melted . | . . . Combat Hostiles . | . . . Parts Melted 4 | . 4 . Heat Transferred 1924 | 111 1813 . Parts Sabotaged . | . . . Parts Stolen . | . . . Parts Stripped . | . . . Power Chain Reactions . | . . . Alert | -11 -10 -10 ------- Run | Yrd Mat Sub Maximum Alert Level . | . . . Low Security (%) 100 | 100 100 . Level 1 . | . . . Level 2 . | . . . Level 3 . | . . . Level 4 . | . . . Level 5 . | . . . High Security . | . . . Max Security . | . . . Peak Influence 140 | 10 140 . Initial . | . . . Average 39 | . 42 . Influence Increases 414 | 10 374 30 Destroy 0b10 Robot/C 220 | . 200 20 Destroy 0b10 Robot/NC 45 | 10 35 . Destroy Leader 70 | . 60 10 Successful Hack 26 | . 26 . Destroy Structure 8 | . 8 . Lose Combat Pursuer 45 | . 45 . Influence Decreases 414 | 10 277 127 Entered New Map 47 | . . 47 Time Decay 357 | 10 267 80 Lost Part 10 | . 10 . Squads Dispatched 2 | . 2 . Investigation . | . . . Extermination . | . . . Reinforcement 2 | . 2 . Assault . | . . . Garrison . | . . . Intercept . | . . . Searches Triggered . | . . . Construction Impeded . | . . . Haulers Reinforced . | . . . Active Scanning Responses . | . . . Cargo Convoy Interrupts . | . . . Stealth | -11 -10 -10 --------- Run | Yrd Mat Sub Distress Signals 1 | . 1 . Communications Jammed . | . . . Distress Signals . | . . . Times Spotted 25 | . 16 9 Peak Tracking Total 3 | . 3 2 Tactical Retreats 3 | . 3 . Traps | -11 -10 -10 ------- Run | Yrd Mat Sub Traps Triggered 3 | . 3 . Indirectly . | . . . Trap Hack Attempts . | . . . Triggered . | . . . Disarmed . | . . . Reprogrammed . | . . . Reused . | . . . Traps Extracted . | . . . Installed . | . . . Triggered . | . . . Machines | -11 -10 -10 ---------- Run | Yrd Mat Sub Machines Disabled . | . . . Max in Single Turn . | . . . Machines Repaired . | . . . Machines Dismantled . | . . . Machines Sabotaged . | . . . Overloaded Fab Kills . | . . . Hacking | -11 -10 -10 --------- Run | Yrd Mat Sub Machines Accessed 9 | . 6 3 Terminals 5 | . 5 . Fabricators . | . . . Repair Stations . | . . . Recycling Units 1 | . 1 . Scanalyzers . | . . . Garrison Access . | . . . Total Hacks 24 | . 18 6 Successful 20 | . 14 6 Failed 4 | . 4 . Catastrophic . | . . . Database Lockouts . | . . . Manual 14 | . 14 . Terminals 15 | . 15 . Fabricators . | . . . Repair Stations . | . . . Recycling Units 3 | . 3 . Scanalyzers . | . . . Garrison Access . | . . . Terminal Hacks 8 | . 2 6 Record 4 | . . 4 Part Schematic 1 | . 1 . Open Door 1 | . . 1 Branch Access Points 1 | . 1 . Release Object 1 | . . 1 Fabricator Hacks . | . . . Repair Station Hacks . | . . . Recycling Unit Hacks 3 | . 3 . Retrieve Matter 3 | . 3 . Scanalyzer . | . . . Garrison Access Hacks . | . . . Unauthorized Hacks 9 | . 9 . Terminals 9 | . 9 . Botnet 3 | . 3 . Disrupt 1 | . 1 . Skim 5 | . 5 . Fabricators . | . . . Repair Stations . | . . . Recycling Units . | . . . Scanalyzers . | . . . Garrison Access . | . . . Data Cores Recovered . | . . . Used . | . . . Hacking Detections 6 | . 6 . Full Trace Events . | . . . Feedback Events . | . . . Feedback Blocked . | . . . Robot Schematics Acquired . | . . . Robots Built . | . . . Authchips . | . . . Time . | . . . Total Robot Build Rating . | . . . Part Schematics Acquired 1 | . 1 . Parts Built . | . . . Authchips . | . . . Time . | . . . Total Part Build Rating . | . . . Parts Repaired . | . . . Time . | . . . Parts Recycled . | . . . Recycled Matter . | . . . Retrieved Matter 100 | . 100 . Retrieved Components . | . . . Parts Scanalyzed . | . . . Part Schematics Acquired . | . . . Parts Damaged . | . . . Bothacking | -11 -10 -10 ------------ Run | Yrd Mat Sub Used RIF Installer . | . . . Robots Hacked . | . . . Non-combat . | . . . Combat . | . . . Robot Hacks Applied . | . . . Relay Couplers Released . | . . . Fabnet Peak Effective % . | . . . Robots Rewired . | . . . Allies Hacked . | . . . Hacks Repelled . | . . . Allies | -11 -10 -10 -------- Run | Yrd Mat Sub Total Allies . | . . . Largest Group . | . . . Highest-Rated Group . | . . . Highest-Rated Ally . | . . . Total Orders . | . . . Ally Attacks . | . . . Total Damage . | . . . Kills . | . . . Allies Corrupted . | . . . Allies Melted . | . . . Intel | -11 -10 -10 ------- Run | Yrd Mat Sub Active Infowar (turns) 1259 | 5 1093 161 Seismic 1259 | 5 1093 161 Robot Analysis Total . | . . . Derelict Logs Recovered 1 | . . 1 Drone Launches . | . . . Drone Recoveries . | . . . Exploration | -11 -10 -10 ------------- Run | Yrd Mat Sub Turns Passed 2667 | 84 1093 1490 Spaces Moved 1413 | 36 529 848 Core 4 | 4 . . Treads 1409 | 32 529 848 Legs . | . . . Wheels . | . . . Hover . | . . . Flight . | . . . Fastest Speed 50 | 50 160 160 Average Speed 159 | 147 160 160 Slowest Speed 160 | 160 160 160 Overloaded Moves . | . . . Propulsion Burnouts . | . . . Robots Hopped . | . . . Potential Cave-ins . | . . . Cave-ins Triggered . | . . . Exploration Rate (%) 49 | 4 88 57 Regions Visited 2 Branch Regions 1 Pre-discovered Areas . | . . . Known Exits Taken 1 | . 1 . Unknown Exits Taken 1 | 1 . . Scrap Searched 7 | . . 7 Spaces Dug 11 | . . 11 Terrain Destroyed 158 | . 7 151 Melee . | . . . Projectile . | . . . AOE 158 | . 7 151 Terrain Rammed . | . . . Walls Destroyed . | . . . Machines Disabled . | . . . Actions | -11 -10 -10 --------- Run | Yrd Mat Sub Total 1663 | 56 682 925 Wait 76 | . 70 6 Move 1411 | 35 528 848 Hop . | . . . Pick Up 25 | 9 12 4 Fast Attach 6 | 4 . 2 Attach 9 | 3 1 5 Detach . | . . . Swap 6 | . 6 . Drop 8 | . 8 . Fire 120 | 5 55 60 Melee . | . . . Ram . | . . . Kick . | . . . Crush 2 | . 2 . Escape Stasis . | . . . Rewire . | . . . Trap . | . . . Miscellaneous . | . . . Route ------- -11/Scrapyard -10/Materials (discovered 6 exits: *Mat x3 / *Min x2 / *Sub) -10/Subcaves (discovered 1 exit: [*Mat]) History --------- Turn | Location | Event 10 | -11/Scrapyard | Discovered new exit (range 15) 85 | -11/Scrapyard | Entered Materials 220 | -10/Materials | Discovered new exit (range 7) 236 | -10/Materials | Discovered new exit (range 16) 310 | -10/Materials | Build established: Mutant 665 | -10/Materials | Identified exit to Mines 716 | -10/Materials | Discovered new exit (range 10) 979 | -10/Materials | Identified exit to Subcaves 979 | -10/Materials | Identified exit to Materials 1074 | -10/Materials | Learned 2 Storage zone layouts 1108 | -10/Materials | Learned 2 Storage zone layouts 1178 | -10/Materials | Entered Subcaves 1179 | -10/Subcaves | Approached by a straggling Scientist 1212 | -10/Subcaves | Learned Materials stockpile data 1483 | -10/Subcaves | Disturbed a concealed Subdweller 1491 | -10/Subcaves | Core integrity fell below 50% 1500 | -10/Subcaves | Core integrity fell below 20% 1524 | -10/Subcaves | Lost 4 parts (2n2w) 1929 | -10/Subcaves | Disturbed a concealed Subdweller 2202 | -10/Subcaves | Visited Clippyterm 2207 | -10/Subcaves | Learned Research machine intel 2253 | -10/Subcaves | A swath of the cavern ceiling suddenly collapsed 2390 | -10/Subcaves | Shifting Twisted Machinery released Sub. Power Source 2392 | -10/Subcaves | Shifting Twisted Machinery released Mak. Light Armor Plating 2437 | -10/Subcaves | Discovered new exit (range 14) 2468 | -10/Subcaves | Shifting Twisted Machinery released Sub. Machine Gun 2516 | -10/Subcaves | Shifting Twisted Machinery released Battle Rifle 2668 | -10/Subcaves | Destroyed self with Grenade Launcher Last Messages --------------- Sub. Power Source falls loose from the Twisted Machinery. Mak. Light Armor Plating falls loose from the Twisted Machinery. 02395_ System corrupted: Energy discharge (-45). UT-E3J(c): "I think it's somewhere west of here" 02402_ Acquired Mak. Light Armor Plating. 02437_ EXIT=FOUND UT-E3J(c): "I think it's somewhere west of here" 02461_ G-47 Trooper destroyed. Sub. Machine Gun falls loose from the Twisted Machinery. 02468_ Acquired 20 matter. 02501_ System corrupted: Barrage Gun jammed. UT-E3J(c): "I think it's somewhere northwest of here" Battle Rifle falls loose from the Twisted Machinery. UT-E3J(c): "I think it's somewhere northwest of here" 02579_ Acquired 19 matter. 02590_ Acquired 17 matter. UT-E3J(c): "I think it's somewhere west of here" 02627_ Subatomizers dissect the Wheel, destroying it. 02654_ System corrupted: Energy discharge (-45). UT-E3J(c): "I think it's somewhere west of here" Map ----- +----------------------------------------------------+ | ????????????????????????????????# #?????# #?? | | ????????????????????????????????# ##????? ##? | | ????????????????????????????????## #####??## ## | | ??#??????????????????????????????## ## #### # | | ? #??????????????????????????????## # # | | ? ??????????????????????????????# " #? | | ? ???????????????????????????????## *""" #? | | # ????????????????????????????????# "##### ##? | | ????????????????????????????????#######??## ##? | | ?????????????????????????????????????????## #? | | ????????????????????????????????????????## ""## | | #????????????????????????????????????????# """" | | ##???????????????????????????????????????# """ | | #####???????????????????????????????????# " | | ## ##???##??????????""##?##?##?????#?#### | | ##?# ##???????"""""#"# # #???### # ## # | | ## #???????"""""&"%[=#????# # | | #??? ??#""""""### ##???# # | | #???# "?#" #;;; ;##??# #### | | #?##"""??????#;; ;;#?### #### #??? | | ##?#""" ?#????#; ## ## ##?# #??? | | #??#" ## ##?# ### #??? | | #???# ## ## ### #### ####??? | | #???# " ##?????# #?????? | | #???# #??????# ##?##?? | | ###?????#" R @ ;##?####### ## ##? | | #???????# ;c ### ## # #? | | #????#### ;; #? | | #???##" ####### ### #? | | "##??##"""" ##?????####?## #? | | "##???#"""" "####??????? #???# #? | | ###???"" "" ###??????????? ??## # # ## | | ##????#" "#??????????????? ??# #### # | | ##??????# ????????????????# ?# ##?# # | | #???????# ????????????????## ### #### ## | | #??????" ?????????????????#"" ## # < # | | ###?????? ""??????????????????#""" [ # | | ???????? "??????????????????#" """ # | | ??????? ?? ???????????????????##### """### ## | | ???????????????????????????????????### ""### # | | ?????????????????????????????????????# " ###" | | ???????????????????????????????????### #?? | | ??????????????????????????????????##"" #??" & | | ?????????????????????????????????##"" """" #?? | | ?????????????????????????????????# " """"###??#### | | ???????????????????????????????### """"##?? ##? | | ???????????????????????????????# """""###[ #? | | ???????????????????????????????#### """" #?? | | ??????????????????????????????????# "#???? | | ?????????????????????????????????# ###???? | +----------------------------------------------------+ Best States ------------- Heat Dissipation 25 Energy Generation 15 Energy Capacity 170 Matter Stores 300 Matter Capacity 300 Sight Range 16 Terrain Scan Density 10 Armor Coverage 100 Evasion (%) 40 Recoil Reduction 2 Item Schematics ----------------- Hcp. Storage Unit | -10/Materials | Hacked Robot Schematics ------------------ None Fabricated ------------ Nothing Repaired ---------- Nothing Alien Tech Used ----------------- None Achievements -------------- None Challenges ------------ None Game ------ Seed CouplerMinesnifferBarrier Manual? 0 Play Time 00:19:32 Cumulative 341.1 hours Start 2025.05.25 @ 20:04:49 End 2025.05.26 @ 00:27:20 Sessions 3 Manual Loads 0 Difficulty Rogue Special Mode None Game No. 217 Rogue 217 Adventurer 0 Explorer 0 Win Type - Total 6 Types 6/0/0/0/0/0/0/0/0/0 Lore% 74 Gallery% 72 Achievement% 66 Wizard Run 0 Options --------- Layout 0 ASCII 0 Keyboard 1 Movement Numpad Keybinds 0 Fullscreen 2 Font 18/SmallcapsGlow Map View 76x50 Zoom Use 0% Tactical HUD 1 Map Filters NONE Filters NONE Steam 1 RUN: 1924deda-c3b5-45f5-8b13-110f2af26099